fUST/lending_fUST_20250414
["ID","MTS","AMOUNT","RATE_DAILY","PERIOD"]
[357920825,1744560631984,-2000.0,0.00025,2]
[357920826,1744560631994,-300.0,0.00025109,2]
[357920827,1744560632003,-300.0,0.00025109,2]
[357920828,1744560632013,-8572.4221365,0.0002511,2]
[357920829,1744560632022,-167.29889837,0.00025517,2]
[357920830,1744560632032,-272.156028,0.00025601,2]
[357920831,1744560632042,-288.6593268,0.00025617,2]
[357920832,1744560632051,-2000.0,0.00025665,2]
[357920833,1744560632061,-200.31053688,0.000259,6]
[357920834,1744560632070,-500.0,0.00026183,2]
[357920835,1744560632090,-795.84418672,0.00026307,2]
[357920836,1744560632100,-464.73451072,0.00026394,2]
[357920837,1744560632110,-26853.0760026,0.00026395,2]
[357920838,1744560632120,-50000.0,0.00026395,2]
[357920839,1744560632130,-167.29889835,0.00026407,2]
[357920840,1744560632140,-500.0,0.00026508,2]
[357920841,1744560632149,-158.26681272,0.000269,2]
[357920842,1744560632159,-500.0,0.00026961,2]
[357920843,1744560632169,-306.66,0.00027,2]
[357920844,1744560632179,-157.0,0.00027,2]
[357920845,1744560632188,-420.0,0.00027199,2]
[357920846,1744560632198,-312.44791667,0.00027293,2]
[357920847,1744560632207,-419.89681905,0.00027293,2]
[357920848,1744560632217,-167.29889835,0.00027297,2]
[357920849,1744560632227,-500.0,0.00027397,2]
[357920850,1744560632240,-500.0,0.00027397,2]
[357920851,1744560632249,-500.0,0.00027397,2]
[357920852,1744560632259,-500.0,0.00027397,2]
[357920853,1744560632268,-500.0,0.00027397,2]
[357920854,1744560632278,-500.0,0.00027397,2]
[357920855,1744560632288,-500.0,0.00027397,2]
[357920856,1744560632297,-500.0,0.00027397,2]
[357920857,1744560632307,-500.0,0.00027397,5]
[357920858,1744560632317,-447.94574113,0.00027599,2]
[357920859,1744560632326,-312.44791667,0.00028,10]
[357920860,1744560632336,-312.44791667,0.00028,10]
[357920861,1744560632345,-191.15904649,0.00028161,2]
[357920862,1744560632354,-795.84418668,0.00028249,2]
[357920863,1744560632364,-158.2668127,0.000283,2]
[357920864,1744560632373,-500.0,0.00028412,2]
[357920865,1744560632383,-213.6111655,0.00028493,30]
[357920866,1744560632393,-156.8325488,0.00028493,30]
[357920867,1744560632402,-564.9152547,0.00028493,30]
[357920868,1744560632412,-213.6111655,0.00028493,30]
[357920869,1744560632422,-156.8325488,0.00028493,30]
[357920870,1744560632432,-564.9152547,0.00028493,30]
[357920871,1744560632442,-213.6111655,0.00028493,30]
[357920872,1744560632451,-156.8325488,0.00028493,30]
[357920873,1744560632461,-564.9152547,0.00028493,30]
[357920874,1744560632471,-213.6111655,0.00028493,30]
[357920875,1744560632480,-156.8325488,0.00028493,30]
[357920876,1744560632491,-564.9152547,0.00028493,30]
[357920877,1744560632501,-158.0,0.00028767,2]
[357920878,1744560632511,-156.8325488,0.00028878,30]
[357920879,1744560632520,-213.6111655,0.00028878,30]
[357920880,1744560632529,-564.9152547,0.00028878,30]
[357920881,1744560632539,-500.0,0.00028918,5]
[357920882,1744560632548,-500.0,0.00028918,5]
[357920883,1744560632557,-500.0,0.00028918,5]
[357920884,1744560632567,-500.0,0.00028918,5]
[357920885,1744560632576,-500.0,0.00028918,5]
[357920886,1744560632586,-500.12285349,0.00028918,5]
[357920887,1744560632595,-500.0,0.00028918,5]
[357920888,1744560632605,-500.0,0.00028918,5]
[357920889,1744560632615,-500.0,0.00028918,2]
[357920890,1744560632624,-500.26298044,0.00028918,5]
[357920891,1744560632633,-185.41246246,0.00028918,2]
[357920892,1744560632643,-500.0,0.00028918,5]
[357920893,1744560632653,-3531.97777768,0.00028969,2]
[357920894,1744560632858,-500.0,0.00028989,2]
[357920895,1744560632869,-500.0,0.00028989,2]
[357920896,1744560632879,-500.0,0.00029189,2]
[357920897,1744560632889,-500.0,0.00029269,2]
[357920898,1744560632900,-156.8325488,0.00029315,30]
[357920899,1744560632912,-595.6155231,0.00029315,30]
[357920900,1744560632922,-412.8137818,0.00029315,30]
[357920901,1744560632932,-500.0,0.0002935,5]
[357920902,1744560632942,-62803.58053837,0.00029387,4]
[357920966,1744560643148,-587.8,0.00029387,4]
[357920985,1744560645943,-6723.20710157,0.00029387,4]
[357920986,1744560646035,-1245.94911899,0.00029387,4]
[357920987,1744561542709,151.82,0.00015501,2]
[357921044,1744561832109,-505.02389326,0.000189,2]
[357921046,1744561832119,-505.02389326,0.000239,2]
[357921049,1744561832129,-6879.93752636,0.0002489,2]
[357921052,1744561832139,-250.0,0.000249,2]
[357921055,1744561832148,-715.73,0.000249,2]
[357921075,1744561832321,-300.0,0.00025204,2]
[357921076,1744561832331,-272.156029,0.00025366,2]
[357921077,1744561832342,-312.44791667,0.00025591,2]
[357921078,1744561832351,-419.89681905,0.00025632,2]
[357921079,1744561832362,-207.8339192,0.000259,6]
[357921080,1744561832373,-282.66659751,0.00026371,2]
[357921081,1744561832382,-207.4,0.00026371,2]
[357921082,1744561832392,-478.7661899,0.00026374,2]
[357921083,1744561832402,-500.0,0.00026385,2]
[357921084,1744561832414,-500.0,0.00026385,2]
[357921085,1744561832425,-500.0,0.00026385,2]
[357921086,1744561832435,-500.0,0.00026385,2]
[357921087,1744561832445,-601.95001229,0.00026385,2]
[357921088,1744561832454,-500.0,0.00026385,2]
[357921089,1744561832464,-500.0,0.00026385,2]
[357921090,1744561832473,-500.0,0.00026385,2]
[357921091,1744561832484,-500.0,0.00026385,2]
[357921092,1744561832494,-500.0,0.00026385,2]
[357921093,1744561832504,-500.0,0.00026385,2]
[357921094,1744561832513,-500.0,0.00026385,2]
[357921095,1744561832523,-500.0,0.00026385,2]
[357921096,1744561832534,-500.0,0.00026385,2]
[357921097,1744561832543,-500.0,0.00026385,2]
[357921098,1744561832553,-500.0,0.00026385,2]
[357921099,1744561832563,-500.0,0.00026385,2]
[357921100,1744561832572,-500.0,0.00026385,2]
[357921101,1744561832582,-500.0,0.00026385,2]
[357921102,1744561832591,-500.0,0.00026385,2]
[357921103,1744561832601,-500.0,0.00026385,2]
[357921104,1744561832610,-500.0,0.00026385,2]
[357921105,1744561832620,-500.0,0.00026385,2]
[357921106,1744561832630,-500.0,0.00026385,2]
[357921107,1744561832639,-500.0,0.00026385,2]
[357921108,1744561832648,-500.0,0.00026385,2]
[357921109,1744561832658,-500.0,0.00026385,2]
[357921110,1744561832668,-500.0,0.00026385,2]
[357921111,1744561832677,-500.0,0.00026385,2]
[357921112,1744561832687,-500.0,0.00026385,2]
[357921113,1744561832697,-500.0,0.00026385,2]
[357921114,1744561832707,-500.0,0.00026385,2]
[357921115,1744561832717,-500.0,0.00026385,2]
[357921116,1744561832727,-500.0,0.00026385,2]
[357921117,1744561832737,-500.0,0.00026385,2]
[357921118,1744561832748,-500.0,0.00026385,2]
[357921119,1744561832759,-500.0,0.00026385,2]
[357921120,1744561832770,-500.0,0.00026385,2]
[357921121,1744561832780,-500.0,0.00026385,2]
[357921122,1744561832791,-500.0,0.00026385,2]
[357921123,1744561832800,-500.0,0.00026385,2]
[357921124,1744561832809,-500.0,0.00026385,2]
[357921125,1744561832820,-500.0,0.00026385,2]
[357921126,1744561832829,-500.0,0.00026385,2]
[357921127,1744561832839,-500.0,0.00026385,2]
[357921128,1744561832850,-500.0,0.00026385,2]
[357921129,1744561832859,-500.0,0.00026385,2]
[357921130,1744561832869,-500.0,0.00026385,2]
[357921131,1744561832879,-398.62387066,0.00026385,2]
[357921141,1744561838251,-500.0,0.00026384,2]
[357921142,1744561838262,-500.0,0.00026384,2]
[357921143,1744561838272,-500.0,0.00026384,2]
[357921144,1744561838283,-500.0,0.00026384,2]
[357921145,1744561838298,-500.0,0.00026384,2]
[357921146,1744561838308,-500.0,0.00026384,2]
[357921147,1744561838317,-500.0,0.00026384,2]
[357921148,1744561838326,-250.0,0.00026384,2]
[357921149,1744561838337,-500.0,0.00026384,2]
[357921150,1744561838346,-500.0,0.00026384,2]
[357921151,1744561838356,-500.0,0.00026384,2]
[357921152,1744561838366,-500.0,0.00026384,2]
[357921153,1744561838377,-500.0,0.00026384,2]
[357921154,1744561838386,-500.0,0.00026384,2]
[357921155,1744561838396,-500.0,0.00026387,2]
[357921156,1744561838405,-500.0,0.00026388,2]
[357921157,1744561838414,-500.0,0.00026442,2]
[357921158,1744561838423,-500.0,0.00026443,2]
[357921159,1744561838433,-500.0,0.00026497,2]
[357921160,1744561838443,-500.0,0.00026498,2]
[357921161,1744561838453,-500.0,0.00026551,2]
[357921162,1744561838463,-500.0,0.00026552,2]
[357921163,1744561838473,-428.9661044,0.00026573,2]
[357921164,1744561838483,-500.0,0.00026583,2]
[357921165,1744561838492,-500.0,0.00026583,2]
[357921166,1744561838501,-500.0,0.00026606,2]
[357921167,1744561838511,-500.0,0.00026607,2]
[357921168,1744561838521,-500.0,0.00026661,2]
[357921169,1744561838530,-500.0,0.00026662,2]
[357921170,1744561838539,-500.0,0.00026716,2]
[357921171,1744561838549,-500.0,0.00026717,2]
[357921172,1744561838559,-439.81645225,0.00026738,2]
[357921173,1744561838568,-224.775747,0.00026738,2]
[357921174,1744561838577,-500.0,0.00026738,2]
[357921175,1744561838586,-500.0,0.00026738,2]
[357921176,1744561838596,-500.0,0.00026738,2]
[357921177,1744561838605,-500.0,0.00026738,2]
[357921178,1744561838615,-500.0,0.00026738,2]
[357921179,1744561838624,-500.0,0.00026738,2]
[357921180,1744561838633,-500.0,0.00026738,2]
[357921181,1744561838643,-500.0,0.00026738,2]
[357921182,1744561838653,-500.0,0.00026738,2]
[357921183,1744561838662,-500.0,0.00026771,2]
[357921184,1744561838672,-500.0,0.00026772,2]
[357921185,1744561838681,-500.0,0.00026825,2]
[357921186,1744561838690,-500.0,0.00026826,2]
[357921187,1744561838700,-500.0,0.0002688,2]
[357921188,1744561838709,-500.0,0.00026881,2]
[357921189,1744561838719,-500.0,0.00026935,2]
[357921190,1744561838728,-500.0,0.00026936,2]
[357921191,1744561838738,-596.48446179,0.0002699,2]
[357921192,1744561838747,-500.0,0.00026991,2]
[357921193,1744561838757,-276.0,0.00027,2]
[357921194,1744561838767,-312.44791667,0.00027,3]
[357921195,1744561838777,-312.44791667,0.00027,3]
[357921196,1744561838786,-500.0,0.00027046,2]
[357921197,1744561838796,-500.0,0.000271,2]
[357921198,1744561838805,-500.0,0.00027123,2]
[357921199,1744561838815,-500.0,0.00027155,2]
[357921200,1744561838824,-500.0,0.0002721,2]
[357921201,1744561838833,-500.0,0.00027259,2]
[357921202,1744561838843,-163.43519824,0.00027297,2]
[357921203,1744561838852,-420.0,0.00027299,2]
[357921204,1744561838862,-531.89588759,0.00027396,2]
[357921205,1744561838872,-562.89171209,0.00027397,2]
[357921206,1744561838883,-600.0,0.00027397,2]
[357921207,1744561838892,-500.0,0.00027397,2]
[357921208,1744561838902,-500.0,0.00027397,2]
[357921209,1744561838911,-273.33977197,0.00027397,2]
[357921210,1744561838926,-507.90045408,0.00027397,2]
[357921211,1744561838935,-500.0,0.00027397,2]
[357921212,1744561838944,-500.0,0.00027397,2]
[357921213,1744561838954,-500.0,0.00027397,2]
[357921214,1744561838963,-500.0,0.00027397,2]
[357921215,1744561838973,-500.0,0.00027397,2]
[357921216,1744561838983,-433.26093435,0.00027397,2]
[357921217,1744561838993,-500.0,0.00027397,5]
[357921218,1744561839003,-500.0,0.00027441,5]
[357921219,1744561839013,-500.0,0.00027441,5]
[357921220,1744561839023,-500.0,0.00027441,5]
[357921221,1744561839033,-500.0,0.00027441,5]
[357921222,1744561839043,-500.0,0.00027503,2]
[357921223,1744561839052,-500.0,0.00027505,2]
[357921224,1744561839062,-500.0,0.00027517,2]
[357921225,1744561839071,-500.0,0.00027577,5]
[357921226,1744561839081,-400.0,0.0002774,2]
[357921227,1744561839091,-878.91551525,0.00027807,3]
[357921250,1744561840342,-121.08448475,0.00027807,3]
[357921252,1744561840353,-163.43519822,0.00027865,2]
[357921254,1744561840363,-312.44791667,0.00028,10]
[357921256,1744561840374,-500.0,0.00028054,2]
[357921258,1744561840384,-220.12324801,0.00028147,5]
[357921260,1744561840394,-500.0,0.00028147,5]
[357921262,1744561840408,-500.0,0.00028298,2]
[357921263,1744561840418,-500.0,0.000283,2]
[357921264,1744561840429,-500.0,0.00028325,2]
[357921265,1744561840439,-1500.0,0.00028355,3]
[357921267,1744561840448,-500.0,0.00028421,2]
[357921268,1744561840458,-163.43519822,0.00028434,2]
[357921269,1744561840468,-500.0,0.0002852,2]
[357921270,1744561840479,-800.25997856,0.00028626,30]
[357921271,1744561840488,-500.0,0.00028626,2]
[357921272,1744561840498,-500.0,0.00028889,2]
[357921273,1744561840507,-25657.8646766,0.00028896,2]
[357921274,1744561840516,-505.02389326,0.000289,2]
[357921275,1744561840526,-2000.0,0.00028903,3]
[357921276,1744561840535,-51315.7293531,0.00028906,2]
[357921277,1744561840545,-151.0,0.00028906,7]
[357921278,1744561840555,-300.702901,0.00028906,7]
[357921279,1744561840564,-300.702901,0.00028906,7]
[357921280,1744561840573,-151.0,0.00028906,7]
[357921281,1744561840583,-789.531118,0.00028906,7]
[357921282,1744561840592,-789.531118,0.00028906,7]
[357921283,1744561840602,-22258.68714303,0.00028916,2]
[357921284,1744561840612,-71652.41330738,0.00028916,2]
[357921285,1744561840622,-151.0,0.00028916,7]
[357921286,1744561840631,-151.0,0.00028916,2]
[357921287,1744561840640,-151.0,0.00028916,2]
[357921288,1744561840650,-305.869179,0.00028916,7]
[357921289,1744561840659,-305.869179,0.00028916,7]
[357921290,1744561840669,-1337.303733,0.00028916,2]
[357921291,1744561840679,-1337.303733,0.00028916,2]
[357921292,1744561840688,-1337.303733,0.00028916,2]
[357921293,1744561840698,-1337.303733,0.00028916,2]
[357921294,1744561840707,-282.469461,0.00028916,7]
[357921295,1744561840716,-300.702901,0.00028916,7]
[357921296,1744561840726,-300.702901,0.00028916,7]
[357921297,1744561840735,-300.702901,0.00028916,7]
[357921298,1744561840745,-300.702901,0.00028916,7]
[357921299,1744561840755,-202.635415,0.00028916,7]
[357921300,1744561840764,-789.531118,0.00028916,7]
[357921301,1744561840774,-789.531118,0.00028916,7]
[357921302,1744561840783,-789.531118,0.00028916,7]
[357921303,1744561840793,-789.531118,0.00028916,7]
[357921304,1744561840803,-84430.26055,0.00028999,4]
[357921305,1744561840812,-2695.60593615,0.00029,7]
[357921306,1744561840821,-2695.60593615,0.00029,7]
[357921307,1744561840831,-16179.0,0.00029,2]
[357921308,1744561840840,-163.43519822,0.00029002,2]
[357921309,1744561840850,-25657.8646766,0.00029092,2]
[357921310,1744561840861,-151.0,0.00029102,2]
[357921311,1744561840871,-151.0,0.00029102,2]
[357921312,1744561840880,-151.0,0.00029102,2]
[357921313,1744561840890,-151.0,0.00029102,2]
[357921314,1744561840899,-305.869179,0.00029102,7]
[357921315,1744561840909,-305.869179,0.00029102,7]
[357921316,1744561840918,-305.869179,0.00029102,7]
[357921317,1744561840928,-305.869179,0.00029102,7]
[357921318,1744561840939,-1337.303733,0.00029102,2]
[357921319,1744561840948,-1337.303733,0.00029102,2]
[357921320,1744561840958,-1337.303733,0.00029102,2]
[357921321,1744561840967,-1337.303733,0.00029102,2]
[357921322,1744561840977,-300.702901,0.00029102,7]
[357921323,1744561840987,-300.702901,0.00029102,7]
[357921324,1744561840996,-300.702901,0.00029102,7]
[357921325,1744561841006,-300.702901,0.00029102,7]
[357921326,1744561841016,-312.44791667,0.00029102,7]
[357921327,1744561841026,-789.531118,0.00029102,7]
[357921328,1744561841035,-789.531118,0.00029102,7]
[357921329,1744561841045,-789.531118,0.00029102,7]
[357921330,1744561841054,-789.531118,0.00029102,7]
[357921331,1744561841063,-153947.188059,0.00029102,2]
[357921332,1744561841073,-323.49063564,0.00029102,2]
[357921333,1744561841082,-151.0,0.00029112,2]
[357921334,1744561841092,-151.0,0.00029112,2]
[357921335,1744561841102,-305.869179,0.00029112,7]
[357921336,1744561841112,-305.869179,0.00029112,7]
[357921337,1744561841121,-1337.303733,0.00029112,2]
[357921338,1744561841131,-1337.303733,0.00029112,2]
[357921339,1744561841140,-300.702901,0.00029112,7]
[357921340,1744561841149,-300.702901,0.00029112,7]
[357921341,1744561841159,-789.531118,0.00029112,7]
[357921342,1744561841169,-789.531118,0.00029112,7]
[357921343,1744561841180,-190122.508206,0.00029112,2]
[357921344,1744561841193,-1743.86955029,0.00029112,2]
[357921362,1744561843232,-207.83391907,0.000289,8]
[357921363,1744561843242,-926.31071543,0.00029112,2]
[357921414,1744563032133,-419.89681905,0.00025726,2]
[357921416,1744563032144,-312.44791667,0.00025764,2]
[357921418,1744563032154,-300.0,0.00026374,2]
[357921420,1744563032164,-452.09138141,0.00026374,2]
[357921445,1744563038388,-47.90861859,0.00026374,2]
[357921446,1744563038399,-500.0,0.00026374,2]
[357921447,1744563038409,-500.0,0.00026374,2]
[357921448,1744563038419,-500.0,0.00026374,2]
[357921449,1744563038429,-93.85492941,0.00026374,2]
[357921450,1744563038442,-406.14507059,0.00026374,2]
[357921451,1744563038451,-10.57504117,0.00026374,2]
[357921452,1744563038497,-489.42495883,0.00026374,2]
[357921453,1744563038506,-500.0,0.00026374,2]
[357921454,1744563038516,-0.89096318,0.00026374,2]
[357921455,1744563038528,-499.10903682,0.00026374,2]
[357921456,1744563038538,-419.88117365,0.00026374,2]
[357921457,1744563038550,-80.11882635,0.00026374,2]
[357921458,1744563038560,-500.0,0.00026374,2]
[357921459,1744563038570,-163.47936376,0.00026374,2]
[357921508,1744563040403,-336.52063624,0.00026374,2]
[357921510,1744563040413,-500.0,0.00026374,2]
[357921512,1744563040423,-500.0,0.00026374,2]
[357921531,1744563040603,-500.0,0.00026374,2]
[357921533,1744563040613,-576.43351763,0.00026374,2]
[357921535,1744563040623,-500.0,0.00026374,2]
[357921537,1744563040633,-268.91559075,0.00026374,2]
[357921539,1744563040642,-183.44145771,0.00026374,2]
[357921611,1744563043440,-316.55854229,0.00026374,2]
[357921613,1744563043451,-500.0,0.00026374,2]
[357921615,1744563043462,-302.56801608,0.00026374,2]
[357921617,1744563043472,-500.0,0.00026374,2]
[357921619,1744563043482,-164.97350521,0.00026374,2]
[357921621,1744563043492,-500.0,0.00026374,2]
[357921623,1744563043502,-500.0,0.00026374,2]
[357921625,1744563043512,-500.0,0.00026374,2]
[357921627,1744563043522,-500.0,0.00026374,2]
[357921629,1744563043532,-500.0,0.00026374,2]
[357921631,1744563043542,-500.0,0.00026374,2]
[357921633,1744563043552,-500.0,0.00026374,2]
[357921634,1744563043562,-500.0,0.00026374,2]
[357921635,1744563043572,-500.0,0.00026374,2]
[357921636,1744563043582,-500.0,0.00026374,2]
[357921638,1744563043592,-500.0,0.00026374,2]
[357921640,1744563043602,-500.0,0.00026374,2]
[357921641,1744563043612,-500.0,0.00026374,2]
[357921642,1744563043622,-500.0,0.00026374,2]
[357921643,1744563043632,-500.0,0.00026374,2]
[357921644,1744563043642,-500.0,0.00026374,2]
[357921645,1744563043651,-500.0,0.00026374,2]
[357921646,1744563043660,-500.0,0.00026374,2]
[357921647,1744563043670,-500.0,0.00026374,2]
[357921648,1744563043679,-500.0,0.00026374,2]
[357921649,1744563043689,-500.0,0.00026374,2]
[357921650,1744563043698,-300.0,0.00026375,2]
[357921651,1744563043710,-221.9616548,0.000269,7]
[357921652,1744563043719,-248.4,0.00027,2]
[357921653,1744563043728,-500.0,0.00027186,2]
[357921654,1744563043738,-500.0,0.00027186,2]
[357921655,1744563043748,-500.0,0.00027294,2]
[357921656,1744563043758,-500.0,0.00027335,2]
[357921657,1744563043767,-500.0,0.00027335,2]
[357921658,1744563043779,-500.0,0.00027335,2]
[357921659,1744563043789,-500.0,0.00027335,2]
[357921660,1744563043799,-500.0,0.00027335,2]
[357921661,1744563043809,-461.04094156,0.00027335,2]
[357921662,1744563043819,-221.96165474,0.00027348,7]
[357921663,1744563043829,-500.0,0.00027397,2]
[357921664,1744563043839,-500.0,0.00027397,2]
[357921665,1744563043848,-500.0,0.00027397,2]
[357921666,1744563043858,-545.08,0.00027397,2]
[357921667,1744563043867,-500.0,0.00027397,2]
[357921668,1744563043877,-223.60041521,0.00027397,2]
[357921669,1744563043886,-500.0,0.00027397,2]
[357921670,1744563043897,-500.0,0.00027397,5]
[357921671,1744563043907,-500.0,0.00027467,5]
[357921672,1744563043917,-500.0,0.00027754,5]
[357921673,1744563043926,-221.96165474,0.00027797,7]
[357921674,1744563043936,-500.0,0.00027803,2]
[357921675,1744563043945,-500.0,0.00028069,3]
[357921676,1744563043955,-221.96165474,0.00028245,7]
[357921677,1744563043964,-500.0,0.00028274,2]
[357921678,1744563043974,-500.0,0.00028519,2]
[357921679,1744563043983,-420.0,0.00028532,2]
[357921680,1744563043993,-420.0,0.00028533,2]
[357921681,1744563044002,-500.0,0.00028591,2]
[357921682,1744563044012,-1000.0,0.00028617,3]
[357921683,1744563044022,-221.96165474,0.00028693,8]
[357921684,1744563044032,-500.0,0.00028873,5]
[357921685,1744563044041,-500.0,0.00028873,5]
[357921686,1744563044051,-500.0,0.00028873,5]
[357921687,1744563044061,-25657.8646766,0.0002888,2]
[357921688,1744563044071,-372.32712131,0.00028889,2]
[357921689,1744563044081,-13351.06301596,0.0002889,2]
[357921690,1744563044093,-943.41397824,0.0002889,2]
[357921824,1744563046214,-407.65185833,0.0002889,2]
[357921828,1744563046268,-1199.90179442,0.0002889,2]
[357921831,1744563046280,-291.39999987,0.0002889,2]
[357921836,1744563046373,-30400.9780734,0.0002889,2]
[357921856,1744564232363,-1857.07627,0.00025345,2]
[357921857,1744564232376,-142.92373,0.00025345,2]
[357921858,1744564232386,-262.0419142,0.00025486,2]
[357921859,1744564232396,-1999.7832576,0.00025644,2]
[357921860,1744564232405,-312.44791667,0.00025776,2]
[357921861,1744564232414,-300.0,0.00026099,2]
[357921863,1744564232424,-10000.0,0.000261,2]
[357921865,1744564232434,-250.0,0.00026274,2]
[357921867,1744564232444,-1209.80833596,0.00026351,2]
[357921869,1744564232454,-5803.42489649,0.00026636,2]
[357921872,1744564232464,-252.10173231,0.00026636,2]
[357921874,1744564232474,-395.67857276,0.00026636,2]
[357921876,1744564232484,-500.0,0.00026636,2]
[357921878,1744564232494,-500.0,0.00026636,2]
[357921880,1744564232505,-500.0,0.00026636,2]
[357921882,1744564232514,-500.0,0.00026636,2]
[357921884,1744564232524,-500.0,0.00026636,2]
[357921886,1744564232533,-500.0,0.00026636,2]
[357921888,1744564232541,-500.0,0.00026636,2]
[357921890,1744564232550,-500.0,0.00026636,2]
[357921892,1744564232559,-500.0,0.00026636,2]
[357921894,1744564232568,-407.64335177,0.00026636,2]
[357921896,1744564232578,-220.88084459,0.00026636,2]
[357921898,1744564232587,-255.0,0.00026637,2]
[357921900,1744564232595,-151.0,0.00026637,2]
[357921901,1744564232604,-151.0,0.00026637,2]
[357921902,1744564232613,-151.0,0.00026637,2]
[357921903,1744564232622,-407.4,0.00026637,2]
[357921904,1744564232631,-24682.9471733,0.00026653,2]
[357921905,1744564232640,-641.9818793,0.00026892,2]
[357921906,1744564232649,-306.03785822,0.000269,7]
[357921907,1744564232658,-223.9348692,0.00026937,2]
[357921908,1744564232668,-223.56,0.00027,2]
[357921909,1744564232677,-306.03785807,0.00027348,7]
[357921910,1744564232685,-500.0,0.00027397,2]
[357921911,1744564232694,-500.0,0.00027397,2]
[357921912,1744564232703,-500.0,0.00027397,2]
[357921913,1744564232712,-500.0,0.00027397,2]
[357921914,1744564232721,-500.0,0.00027397,2]
[357921915,1744564232730,-500.0,0.00027397,5]
[357921916,1744564232738,-500.0,0.00027581,2]
[357921917,1744564232747,-500.0,0.00027643,2]
[357921918,1744564232756,-306.03785807,0.00027797,7]
[357921919,1744564232766,-500.0,0.00027899,2]
[357921920,1744564232775,-312.44791667,0.00028,10]
[357921921,1744564232784,-420.0,0.00028242,2]
[357921922,1744564232792,-306.03785807,0.00028245,7]
[357921923,1744564232801,-500.0,0.00028269,2]
[357921924,1744564232810,-500.0,0.000284,2]
[357921925,1744564232819,-500.0,0.00028464,2]
[357921926,1744564232828,-500.0,0.00028675,5]
[357921927,1744564232836,-500.0,0.00028675,5]
[357921928,1744564232844,-500.0,0.00028675,5]
[357921929,1744564232852,-500.0,0.00028675,5]
[357921930,1744564232860,-500.0,0.00028675,5]
[357921931,1744564232869,-500.0,0.00028675,2]
[357921932,1744564232880,-500.0,0.00028675,5]
[357921933,1744564232889,-501.75562334,0.00028675,5]
[357921934,1744564232898,-500.0,0.00028675,5]
[357921935,1744564232909,-247.73699008,0.0002868,2]
[357921936,1744564232918,-306.03785807,0.00028693,8]
[357921937,1744564232926,-324.26305001,0.00028769,2]
[357921938,1744564232942,-18432.6373369,0.0002877,2]
[357921939,1744564232951,-500.0,0.00028773,5]
[357921940,1744564232960,-500.0,0.00028773,5]
[357921941,1744564232969,-500.0,0.00028773,5]
[357921942,1744564232980,-500.0,0.00028773,5]
[357921943,1744564232989,-500.0,0.00028773,5]
[357921944,1744564232998,-500.0,0.00028773,5]
[357921945,1744564233008,-500.0,0.00028773,3]
[357921946,1744564233017,-9075.8322837,0.0002878,2]
[357921947,1744564233030,-4324.37608042,0.0002878,2]
[357921948,1744564233041,-2792.51519272,0.0002878,2]
[357921984,1744564243651,-302.32009384,0.00026635,2]
[357921985,1744564243662,-107.86185121,0.00026635,2]
[357922387,1744565432537,-501.32701619,0.000239,2]
[357922388,1744565432547,-419.89681905,0.0002398,2]
[357922389,1744565432568,-300.0,0.00023999,2]
[357922390,1744565432579,-974.53626273,0.00024,2]
[357922391,1744565432593,-2464.0,0.00024,2]
[357922392,1744565432604,-36592.70446835,0.00024,2]